fUST/lending_fUST_20250812
["ID","MTS","AMOUNT","RATE_DAILY","PERIOD"]
[378681600,1754958640891,-460.0,0.00019075,2]
[378681601,1754958640901,-460.0,0.00019075,2]
[378681602,1754958640910,-562.62,0.00019075,2]
[378681603,1754958640919,-1000.0,0.00019075,2]
[378681604,1754958640930,-460.0,0.00019075,2]
[378681605,1754958640939,-460.0,0.00019075,2]
[378681606,1754958640948,-460.0,0.00019075,2]
[378681607,1754958640958,-460.0,0.00019075,2]
[378681608,1754958640967,-460.0,0.00019075,2]
[378681609,1754958640976,-460.0,0.00019075,2]
[378681610,1754958640985,-460.0,0.00019075,2]
[378681611,1754958640994,-460.0,0.00019075,2]
[378681612,1754958641003,-460.0,0.00019075,2]
[378681613,1754958641012,-460.0,0.00019075,2]
[378681614,1754958641021,-228.35510715,0.00019075,2]
[378681615,1754958641030,-460.0,0.00019075,2]
[378681616,1754958641040,-460.0,0.00019075,2]
[378681617,1754958641048,-460.0,0.00019075,2]
[378681618,1754958641058,-460.0,0.00019075,2]
[378681619,1754958641067,-460.0,0.00019075,2]
[378681620,1754958641076,-460.0,0.00019075,2]
[378681621,1754958641085,-460.0,0.00019075,2]
[378681622,1754958641094,-460.0,0.00019075,2]
[378681623,1754958641104,-460.0,0.00019075,2]
[378681624,1754958641113,-460.0,0.00019075,2]
[378681625,1754958641123,-460.0,0.00019075,2]
[378681626,1754958641132,-460.0,0.00019075,2]
[378681627,1754958641141,-395.44448093,0.00019075,2]
[378681628,1754958641150,-460.0,0.00019075,2]
[378681629,1754958641160,-414.69607819,0.00019075,2]
[378681630,1754958641170,-460.0,0.00019075,2]
[378681631,1754958641179,-460.0,0.00019075,2]
[378681632,1754958641188,-549.14,0.00019075,2]
[378681633,1754958641197,-500.11733005,0.00019075,2]
[378681634,1754958641206,-460.0,0.00019075,2]
[378681635,1754958641216,-460.0,0.00019075,2]
[378681636,1754958641225,-460.0,0.00019075,2]
[378681637,1754958641235,-460.0,0.00019075,2]
[378681638,1754958641243,-500.0,0.00019075,2]
[378681639,1754958641253,-460.0,0.00019075,2]
[378681640,1754958641262,-460.0,0.00019075,2]
[378681641,1754958641271,-460.0,0.00019075,2]
[378681642,1754958641280,-480.72218901,0.00019075,2]
[378681643,1754958641289,-575.56,0.00019075,2]
[378681644,1754958641299,-460.0,0.00019075,2]
[378681645,1754958641308,-460.0,0.00019075,2]
[378681646,1754958641317,-460.0,0.00019075,2]
[378681647,1754958641327,-460.0,0.00019075,2]
[378681648,1754958641336,-460.0,0.00019075,2]
[378681649,1754958641345,-460.0,0.00019075,2]
[378681650,1754958641355,-460.0,0.00019075,2]
[378681651,1754958641363,-460.0,0.00019075,2]
[378681652,1754958641372,-460.0,0.00019075,2]
[378681653,1754958641382,-460.0,0.00019075,2]
[378681654,1754958641391,-460.0,0.00019075,2]
[378681655,1754958641400,-2266.72,0.00019075,2]
[378681656,1754958641409,-554.28,0.00019075,2]
[378681657,1754958641419,-460.0,0.00019075,2]
[378681658,1754958641427,-460.0,0.00019075,2]
[378681659,1754958641437,-460.61577241,0.00019075,2]
[378681660,1754958641446,-460.0,0.00019075,2]
[378681661,1754958641456,-460.0,0.00019075,2]
[378681662,1754958641465,-460.0,0.00019075,2]
[378681663,1754958641474,-1298.74,0.00019075,2]
[378681664,1754958641483,-460.0,0.00019075,2]
[378681665,1754958641492,-460.0,0.00019075,2]
[378681666,1754958641502,-460.0,0.00019075,2]
[378681667,1754958641511,-460.0,0.00019075,2]
[378681668,1754958641520,-460.0,0.00019075,2]
[378681669,1754958641529,-460.0,0.00019075,2]
[378681670,1754958641539,-460.0,0.00019075,2]
[378681671,1754958641548,-460.0,0.00019075,2]
[378681672,1754958641558,-460.0,0.00019075,2]
[378681673,1754958641567,-460.0,0.00019075,2]
[378681674,1754958641576,-460.0,0.00019075,2]
[378681675,1754958641586,-460.0,0.00019075,2]
[378681676,1754958641595,-460.0,0.00019075,2]
[378681677,1754958641604,-554.2849335,0.00019075,2]
[378681678,1754958641613,-460.0,0.00019075,2]
[378681679,1754958641623,-480.52481825,0.00019075,2]
[378681680,1754958641632,-1000.0,0.00019075,2]
[378681681,1754958641642,-460.0,0.00019075,2]
[378681682,1754958641651,-460.0,0.00019075,2]
[378681683,1754958641661,-462.54539418,0.00019075,2]
[378681684,1754958641671,-460.0,0.00019075,2]
[378681685,1754958641680,-460.0,0.00019075,2]
[378681686,1754958641690,-460.0,0.00019075,2]
[378681687,1754958641700,-1193.42,0.00019075,2]
[378681688,1754958641710,-460.0,0.00019075,2]
[378681689,1754958641719,-460.0,0.00019075,2]
[378681690,1754958641728,-460.0,0.00019075,2]
[378681691,1754958641738,-460.0,0.00019075,2]
[378681692,1754958641747,-460.55384015,0.00019075,2]
[378681693,1754958641757,-460.0,0.00019075,2]
[378681694,1754958641766,-3925.4,0.00019075,2]
[378681695,1754958641775,-460.0,0.00019075,2]
[378681696,1754958641785,-460.0,0.00019075,2]
[378681697,1754958641798,-460.0,0.00019075,2]
[378681698,1754958641807,-460.0,0.00019075,2]
[378681699,1754958641816,-460.0,0.00019075,2]
[378681700,1754958641825,-460.0,0.00019075,2]
[378681701,1754958641835,-460.0,0.00019075,2]
[378681702,1754958641845,-460.0,0.00019075,2]
[378681703,1754958641854,-460.0,0.00019075,2]
[378681704,1754958641863,-460.0,0.00019075,2]
[378681705,1754958641874,-460.0,0.00019075,2]
[378681706,1754958641884,-885.4,0.00019075,2]
[378681707,1754958641893,-460.0,0.00019075,2]
[378681708,1754958641903,-460.0,0.00019075,2]
[378681709,1754958641912,-460.0,0.00019075,2]
[378681710,1754958641921,-460.0,0.00019075,2]
[378681711,1754958641930,-460.0,0.00019075,2]
[378681712,1754958641939,-460.0,0.00019075,2]
[378681713,1754958641949,-460.0,0.00019075,2]
[378681714,1754958641958,-460.0,0.00019075,2]
[378681715,1754958641967,-460.0,0.00019075,2]
[378681716,1754958641977,-460.0,0.00019075,2]
[378681717,1754958641986,-460.0,0.00019075,2]
[378681718,1754958641995,-460.0,0.00019075,2]
[378681719,1754958642004,-460.0,0.00019075,2]
[378681720,1754958642013,-43153.7833816,0.00019076,2]
[378681721,1754958642023,-672.74793233,0.00019076,2]
[378681722,1754958642032,-302.78807257,0.00019168,2]
[378681723,1754958642041,-500.0,0.00019173,2]
[378681724,1754958642050,-500.0,0.00019173,2]
[378681725,1754958642059,-460.0,0.00019176,2]
[378681726,1754958642068,-460.0,0.00019176,2]
[378681727,1754958642078,-579.5,0.00019176,2]
[378681728,1754958642087,-157.65091621,0.00019176,2]
[378681729,1754958642096,-460.0,0.00019176,2]
[378681730,1754958642105,-579.62,0.00019176,2]
[378681731,1754958642115,-1073.91,0.00019176,2]
[378681732,1754958642124,-460.0,0.00019176,2]
[378681733,1754958642133,-460.0,0.00019176,2]
[378681734,1754958642141,-460.0,0.00019176,2]
[378681735,1754958642150,-460.0,0.00019176,2]
[378681736,1754958642160,-460.0,0.00019176,2]
[378681737,1754958642169,-460.0,0.00019176,2]
[378681738,1754958642178,-460.0,0.00019176,2]
[378681739,1754958642187,-1605.17,0.00019176,2]
[378681740,1754958642196,-460.0,0.00019176,2]
[378681741,1754958642205,-1216.18,0.00019176,2]
[378681742,1754958642216,-1689.44,0.00019176,2]
[378681743,1754958642225,-791.13,0.00019176,2]
[378681744,1754958642234,-460.0,0.00019176,2]
[378681745,1754958642244,-460.0,0.00019176,2]
[378681746,1754958642253,-1028.6,0.00019176,2]
[378681747,1754958642262,-460.0,0.00019176,2]
[378681748,1754958642271,-460.0,0.00019176,2]
[378681749,1754958642281,-895.11,0.00019176,2]
[378681750,1754958642290,-460.0,0.00019176,2]
[378681751,1754958642299,-1705.96,0.00019176,2]
[378681752,1754958642308,-460.0,0.00019176,2]
[378681753,1754958642317,-460.0,0.00019176,2]
[378681755,1754958642327,-724.75,0.00019176,2]
[378681756,1754958642335,-460.0,0.00019176,2]
[378681758,1754958642345,-460.0,0.00019176,2]
[378681760,1754958642354,-1088.83,0.00019176,2]
[378681761,1754958642363,-460.0,0.00019176,2]
[378681762,1754958642372,-460.0,0.00019176,2]
[378681763,1754958642381,-462.67,0.00019176,2]
[378681764,1754958642390,-460.0,0.00019176,2]
[378681765,1754958642399,-460.0,0.00019176,2]
[378681766,1754958642409,-770.93,0.00019176,2]
[378681767,1754958642419,-646.65,0.00019176,2]
[378681768,1754958642428,-460.0,0.00019176,2]
[378681769,1754958642437,-460.0,0.00019176,2]
[378681770,1754958642446,-460.0,0.00019176,2]
[378681771,1754958642455,-460.0,0.00019176,2]
[378681772,1754958642464,-460.0,0.00019176,2]
[378681774,1754958642474,-460.0,0.00019176,2]
[378681776,1754958642483,-460.0,0.00019176,2]
[378681778,1754958642493,-460.0,0.00019176,2]
[378681780,1754958642502,-460.0,0.00019176,2]
[378681781,1754958642511,-587.53,0.00019176,2]
[378681782,1754958642521,-911.52,0.00019176,2]
[378681784,1754958642530,-1020.95,0.00019176,2]
[378681785,1754958642540,-697.96,0.00019176,2]
[378681786,1754958642549,-460.0,0.00019176,2]
[378681787,1754958642558,-460.0,0.00019176,2]
[378681788,1754958642567,-460.0,0.00019176,2]
[378681789,1754958642576,-460.0,0.00019176,2]
[378681790,1754958642585,-3424.47,0.00019176,2]
[378681791,1754958642595,-626.38,0.00019176,2]
[378681792,1754958642604,-460.0,0.00019176,2]
[378681793,1754958642613,-460.0,0.00019176,2]
[378681794,1754958642622,-460.0,0.00019176,2]
[378681795,1754958642632,-460.0,0.00019176,2]
[378681796,1754958642641,-701.13,0.00019176,2]
[378681797,1754958642650,-460.0,0.00019176,2]
[378681798,1754958642660,-460.0,0.00019176,2]
[378681799,1754958642671,-1557.11,0.00019176,2]
[378681800,1754958642680,-460.0,0.00019176,2]
[378681801,1754958642690,-525.28985447,0.00019176,2]
[378681802,1754958642700,-482.78,0.00019176,2]
[378681803,1754958642709,-908.04,0.00019176,2]
[378681804,1754958642719,-460.0,0.00019176,2]
[378681805,1754958642729,-164.79707474,0.00019176,2]
[378681806,1754958642738,-460.0,0.00019176,2]
[378681807,1754958642747,-460.0,0.00019176,2]
[378681808,1754958642756,-460.0,0.00019176,2]
[378681809,1754958642766,-460.0,0.00019176,2]
[378681810,1754958642775,-460.0,0.00019176,2]
[378681811,1754958642784,-460.0,0.00019176,2]
[378681812,1754958642796,-460.0,0.00019176,2]
[378681813,1754958642805,-460.0,0.00019176,2]
[378681814,1754958642814,-460.0,0.00019176,2]
[378681815,1754958642823,-1892.47,0.00019176,2]
[378681816,1754958642832,-645.56,0.00019176,2]
[378681817,1754958642842,-460.0,0.00019176,2]
[378681818,1754958642851,-460.0,0.00019176,2]
[378681819,1754958642861,-460.0,0.00019176,2]
[378681820,1754958642872,-460.0,0.00019176,2]
[378681821,1754958642881,-464.18,0.00019176,2]
[378681822,1754958642890,-516.22,0.00019176,2]
[378681823,1754958642899,-534.78,0.00019176,2]
[378681824,1754958642909,-460.0,0.00019176,2]
[378681825,1754958642918,-460.0,0.00019176,2]
[378681826,1754958642927,-606.33,0.00019176,2]
[378681827,1754958642937,-489.45452389,0.00019177,2]
[378681828,1754958642946,-460.0,0.00019177,2]
[378681829,1754958642957,-460.0,0.00019177,2]
[378681830,1754958642966,-485.52889551,0.00019177,2]
[378681831,1754958642977,-460.0,0.00019177,2]
[378681832,1754958642986,-460.0,0.00019177,2]
[378681833,1754958642995,-460.0,0.00019177,2]
[378681834,1754958643004,-460.0,0.00019177,2]
[378681835,1754958643014,-460.0,0.00019177,2]
[378681836,1754958643023,-460.0,0.00019177,2]
[378681837,1754958643032,-460.0,0.00019177,2]
[378681838,1754958643041,-460.0,0.00019177,2]
[378681839,1754958643051,-460.0,0.00019177,2]
[378681840,1754958643060,-460.0,0.00019177,2]
[378681841,1754958643069,-460.0,0.00019177,2]
[378681842,1754958643078,-460.0,0.00019177,2]
[378681843,1754958643088,-460.0,0.00019177,2]
[378681844,1754958643096,-460.0,0.00019177,2]
[378681845,1754958643106,-460.0,0.00019177,2]
[378681846,1754958643115,-460.0,0.00019177,2]
[378681847,1754958643124,-460.0,0.00019177,2]
[378681848,1754958643134,-460.0,0.00019177,2]
[378681849,1754958643143,-460.0,0.00019177,2]
[378681850,1754958643153,-460.0,0.00019177,2]
[378681851,1754958643168,-11710.76,0.00019177,2]
[378681852,1754958643178,-2913.42,0.00019177,2]
[378681853,1754958643187,-460.0,0.00019177,2]
[378681854,1754958643197,-460.0,0.00019177,2]
[378681855,1754958643207,-4075.12,0.00019177,2]
[378681856,1754958643217,-460.0,0.00019177,2]
[378681857,1754958643226,-460.0,0.00019177,2]
[378681858,1754958643236,-460.0,0.00019177,2]
[378681859,1754958643245,-460.0,0.00019177,2]
[378681860,1754958643255,-460.0,0.00019177,2]
[378681861,1754958643265,-624.53,0.00019177,2]
[378681862,1754958643274,-2733.99,0.00019177,2]
[378681863,1754958643284,-2082.16,0.00019177,2]
[378681864,1754958643294,-1598.56,0.00019177,2]
[378681865,1754958643304,-430.87988343,0.00019177,2]
[378681866,1754958643313,-616.92,0.00019177,2]
[378681867,1754958643323,-3931.51,0.00019177,2]
[378681868,1754958643343,-460.0,0.00019177,2]
[378681869,1754958643354,-3664.76,0.00019177,2]
[378681870,1754958643364,-460.0,0.00019177,2]
[378681871,1754958643374,-460.0,0.00019177,2]
[378681872,1754958643384,-460.0,0.00019177,2]
[378681873,1754958643394,-151.0,0.00019178,2]
[378681874,1754958643405,-666.0,0.00019178,2]
[378681875,1754958643646,-5000.0,0.00019178,2]
[378681876,1754958643656,-5000.0,0.00019178,2]
[378681877,1754958643667,-5000.0,0.00019178,2]
[378681878,1754958643676,-3537.74496797,0.00019178,2]
[378681879,1754958643686,-258.14927794,0.00019233,2]
[378681880,1754958643696,-322.2,0.00019292,2]
[378681881,1754958643705,-264.0,0.00019316,2]
[378681882,1754958643714,-460.0,0.00019346,2]
[378681883,1754958643724,-460.0,0.00019346,2]
[378681884,1754958643734,-460.0,0.00019346,2]
[378681885,1754958643743,-460.0,0.00019346,2]
[378681886,1754958643753,-460.0,0.00019347,2]
[378681887,1754958643762,-460.0,0.00019347,2]
[378681888,1754958643772,-460.0,0.00019347,2]
[378681889,1754958643781,-5060.33,0.00019347,2]
[378681890,1754958643791,-460.0,0.00019347,2]
[378681891,1754958643802,-460.0,0.00019347,2]
[378681892,1754958643811,-902.16,0.00019347,2]
[378681893,1754958643821,-460.0,0.00019347,2]
[378681894,1754958643831,-460.0,0.00019347,2]
[378681895,1754958643840,-4463.63,0.00019347,2]
[378681896,1754958643850,-666.74,0.00019347,2]
[378681897,1754958643859,-460.0,0.00019347,2]
[378681898,1754958643872,-1427.76,0.00019347,2]
[378681899,1754958643885,-806.38,0.00019347,2]
[378681900,1754958643895,-460.0,0.00019347,2]
[378681901,1754958643905,-2579.66,0.00019347,2]
[378681902,1754958643915,-460.0,0.00019347,2]
[378681903,1754958643924,-460.0,0.00019347,2]
[378681904,1754958643934,-1359.88,0.00019347,2]
[378681905,1754958643943,-460.0,0.00019347,2]
[378681906,1754958643953,-3900.76,0.00019347,2]
[378681907,1754958643962,-809.92,0.00019347,2]
[378681908,1754958643972,-460.0,0.00019347,2]
[378681909,1754958643981,-460.0,0.00019347,2]
[378681910,1754958643991,-766.99,0.00019347,2]
[378681911,1754958644000,-460.0,0.00019347,2]
[378681912,1754958644009,-460.0,0.00019347,2]
[378681913,1754958644019,-518.04767297,0.00019347,2]
[378681914,1754958644028,-460.0,0.00019347,2]
[378681915,1754958644038,-460.0,0.00019347,2]
[378681916,1754958644049,-460.0,0.00019347,2]
[378681917,1754958644059,-500.0,0.00019348,2]
[378681918,1754958644068,-784.57,0.00019348,2]
[378681919,1754958644077,-460.0,0.00019348,2]
[378681920,1754958644087,-289.07120505,0.00019348,2]
[378681921,1754958644097,-460.0,0.00019348,2]
[378681922,1754958644107,-460.0,0.00019348,2]
[378681923,1754958644117,-460.0,0.00019348,2]
[378681924,1754958644127,-1221.81,0.00019348,2]
[378681925,1754958644137,-861.66,0.00019348,2]
[378681926,1754958644146,-460.0,0.00019348,2]
[378681927,1754958644155,-460.0,0.00019348,2]
[378681928,1754958644165,-460.0,0.00019348,2]
[378681929,1754958644175,-460.0,0.00019348,2]
[378681930,1754958644184,-460.0,0.00019348,2]
[378681931,1754958644194,-461.72507265,0.00019348,2]
[378681932,1754958644204,-460.0,0.00019348,2]
[378681933,1754958644214,-460.0,0.00019348,2]
[378681934,1754958644224,-494.87,0.00019348,2]
[378681935,1754958644233,-471.80996369,0.00019348,2]
[378681936,1754958644243,-463.51,0.00019348,2]
[378681937,1754958644252,-573.66499687,0.00019348,2]
[378681938,1754958644264,-460.0,0.00019348,2]
[378681939,1754958644273,-460.0,0.00019348,2]
[378681940,1754958644283,-460.0,0.00019348,2]
[378681941,1754958644292,-976.65,0.00019348,2]
[378681942,1754958644302,-608.91,0.00019348,2]
[378681943,1754958644311,-842.07,0.00019348,2]
[378681944,1754958644322,-460.0,0.00019348,2]
[378681945,1754958644333,-460.0,0.00019348,2]
[378681946,1754958644343,-1459.43,0.00019348,2]
[378681947,1754958644352,-460.0,0.00019348,2]
[378681948,1754958644362,-632.07,0.00019348,2]
[378681949,1754958644371,-1203.9,0.00019348,2]
[378681950,1754958644381,-460.0,0.00019348,2]
[378681951,1754958644391,-460.0,0.00019348,2]
[378681952,1754958644401,-460.0,0.00019348,2]
[378681953,1754958644412,-460.0,0.00019348,2]
[378681954,1754958644422,-460.0,0.00019348,2]
[378681955,1754958644432,-622.11,0.00019348,2]
[378681956,1754958644442,-460.0,0.00019348,2]
[378681957,1754958644452,-460.0,0.00019348,2]
[378681958,1754958644462,-460.0,0.00019348,2]
[378681959,1754958644471,-765.88,0.00019348,2]
[378681960,1754958644481,-460.0,0.00019348,2]
[378681961,1754958644491,-487.63,0.00019348,2]
[378681962,1754958644500,-1223.37,0.00019348,2]
[378681963,1754958644510,-460.0,0.00019348,2]
[378681964,1754958644519,-460.0,0.00019348,2]
[378681965,1754958644528,-6326.87,0.00019348,2]
[378681966,1754958644538,-460.0,0.00019348,2]
[378681967,1754958644547,-460.0,0.00019348,2]
[378681968,1754958644556,-490.22135844,0.00019348,2]
[378681969,1754958644566,-500.41,0.00019348,2]
[378681970,1754958644576,-509.65,0.00019348,2]
[378681971,1754958644585,-460.0,0.00019348,2]
[378681972,1754958644595,-460.0,0.00019348,2]
[378681973,1754958644604,-1655.31,0.00019348,2]
[378681974,1754958644614,-460.0,0.00019348,2]
[378681975,1754958644623,-1264.35,0.00019348,2]
[378681976,1754958644633,-460.0,0.00019348,2]
[378681977,1754958644643,-460.0,0.00019348,2]
[378681978,1754958644654,-682.46,0.00019348,2]
[378681979,1754958644663,-1137.09,0.00019348,2]
[378681980,1754958644673,-460.0,0.00019348,2]
[378681981,1754958644683,-460.0,0.00019348,2]
[378681982,1754958644692,-460.0,0.00019348,2]
[378681983,1754958644702,-2297.14,0.00019348,2]
[378681984,1754958644711,-460.0,0.00019348,2]
[378681985,1754958644721,-460.0,0.00019348,2]
[378681986,1754958644731,-561.06,0.00019348,2]
[378681987,1754958644740,-460.0,0.00019348,2]
[378681988,1754958644750,-460.0,0.00019348,2]
[378681989,1754958644759,-460.0,0.00019348,2]
[378681990,1754958644769,-460.0,0.00019348,2]
[378681991,1754958644778,-460.0,0.00019348,2]
[378681992,1754958644788,-213.31969914,0.00019348,2]
[378681993,1754958644801,-1985.46,0.00019348,2]
[378681994,1754958644810,-460.0,0.00019348,2]
[378681995,1754958644820,-460.0,0.00019348,2]
[378681996,1754958644829,-460.0,0.00019348,2]
[378681997,1754958644840,-460.0,0.00019348,2]
[378681998,1754958644850,-460.0,0.00019348,2]
[378681999,1754958644859,-460.0,0.00019348,2]
[378682000,1754958644869,-460.0,0.00019348,2]
[378682001,1754958644879,-556.97,0.00019348,2]
[378682002,1754958644888,-460.0,0.00019348,2]
[378682003,1754958644898,-460.0,0.00019348,2]
[378682004,1754958644907,-835.67,0.00019348,2]
[378682005,1754958644917,-1145.06,0.00019348,2]
[378682006,1754958644927,-1271.75,0.00019348,2]
[378682007,1754958644937,-460.0,0.00019348,2]
[378682008,1754958644946,-460.0,0.00019348,2]
[378682009,1754958644956,-1194.86,0.00019348,2]
[378682010,1754958644966,-1636.68,0.00019348,2]
[378682011,1754958644975,-460.0,0.00019348,2]
[378682012,1754958644985,-4841.01,0.00019348,2]
[378682013,1754958644994,-460.0,0.00019348,2]
[378682014,1754958645004,-460.0,0.00019348,2]
[378682015,1754958645013,-213.72454386,0.00019348,2]
[378682016,1754958645024,-465.05429861,0.00019348,2]
[378682017,1754958645033,-460.0,0.00019348,2]
[378682018,1754958645042,-460.0,0.00019348,2]
[378682019,1754958645051,-460.0,0.00019348,2]
[378682020,1754958645060,-460.0,0.00019348,2]
[378682021,1754958645070,-460.0,0.00019348,2]
[378682022,1754958645079,-1017.52,0.00019348,2]
[378682023,1754958645088,-460.0,0.00019348,2]
[378682024,1754958645097,-460.0,0.00019348,2]
[378682025,1754958645106,-460.0,0.00019348,2]
[378682026,1754958645116,-460.0,0.00019348,2]
[378682027,1754958645125,-533.26,0.00019348,2]
[378682028,1754958645134,-460.0,0.00019348,2]
[378682029,1754958645143,-460.0,0.00019348,2]
[378682030,1754958645152,-984.28,0.00019348,2]
[378682031,1754958645163,-1334.35,0.00019348,2]
[378682032,1754958645172,-460.0,0.00019348,2]
[378682033,1754958645181,-3022.21,0.00019348,2]
[378682034,1754958645190,-954.96,0.00019348,2]
[378682035,1754958645199,-460.0,0.00019349,2]
[378682036,1754958645208,-460.0,0.00019349,2]
[378682037,1754958645218,-460.0,0.00019349,2]
[378682038,1754958645227,-460.0,0.00019349,2]
[378682039,1754958645245,-460.0,0.00019349,2]
[378682040,1754958645258,-460.0,0.00019349,2]
[378682041,1754958645267,-460.0,0.00019349,2]
[378682042,1754958645278,-733.37,0.00019349,2]
[378682043,1754958645288,-460.0,0.00019349,2]
[378682044,1754958645298,-460.0,0.00019349,2]
[378682045,1754958645308,-460.0,0.00019349,2]
[378682046,1754958645319,-460.0,0.00019349,2]
[378682047,1754958645329,-460.0,0.00019349,2]
[378682048,1754958645340,-509.55098293,0.00019349,2]
[378682049,1754958645350,-460.0,0.00019349,2]
[378682050,1754958645360,-460.0,0.00019349,2]
[378682051,1754958645371,-460.0,0.00019349,2]
[378682052,1754958645382,-460.0,0.00019349,2]
[378682053,1754958645392,-460.0,0.00019349,2]
[378682055,1754958645403,-460.0,0.00019349,2]
[378682056,1754958645413,-176.61955206,0.00019349,2]
[378682057,1754958645424,-460.0,0.00019349,2]
[378682058,1754958645434,-460.0,0.00019349,2]
[378682059,1754958645444,-460.0,0.00019349,2]
[378682060,1754958645454,-460.0,0.00019349,2]
[378682061,1754958645464,-460.0,0.00019349,2]
[378682062,1754958645474,-460.0,0.00019349,2]
[378682063,1754958645484,-460.0,0.00019349,2]
[378682064,1754958645494,-460.0,0.00019349,2]
[378682065,1754958645504,-460.0,0.00019349,2]
[378682066,1754958645514,-460.0,0.00019349,2]
[378682067,1754958645524,-460.0,0.00019349,2]
[378682068,1754958645535,-460.0,0.00019349,2]
[378682069,1754958645545,-460.0,0.00019349,2]
[378682070,1754958645555,-460.0,0.00019349,2]
[378682071,1754958645564,-460.0,0.00019349,2]
[378682072,1754958645574,-460.0,0.00019349,2]
[378682073,1754958645584,-460.0,0.00019349,2]
[378682074,1754958645595,-461.22363252,0.00019349,2]
[378682075,1754958645605,-460.0,0.00019349,2]
[378682076,1754958645615,-460.0,0.00019349,2]
[378682077,1754958645624,-462.78268466,0.00019349,2]
[378682078,1754958645635,-460.0,0.00019349,2]
[378682079,1754958645645,-460.0,0.00019349,2]
[378682080,1754958645656,-460.0,0.00019349,2]
[378682081,1754958645666,-166.3383285,0.00019349,2]
[378682082,1754958645675,-460.0,0.00019349,2]
[378682083,1754958645685,-460.0,0.00019349,2]
[378682084,1754958645695,-460.0,0.00019349,2]
[378682085,1754958645705,-460.0,0.00019349,2]
[378682086,1754958645715,-460.0,0.00019349,2]
[378682087,1754958645725,-460.0,0.00019349,2]
[378682088,1754958645735,-460.0,0.00019349,2]
[378682089,1754958645744,-460.0,0.00019349,2]
[378682090,1754958645754,-460.0,0.00019349,2]
[378682091,1754958645763,-460.0,0.00019349,2]
[378682092,1754958645773,-460.0,0.00019349,2]
[378682093,1754958645784,-460.0,0.00019349,2]
[378682094,1754958645797,-460.0,0.00019349,2]
[378682095,1754958645807,-460.0,0.00019349,2]
[378682096,1754958645816,-1306.28,0.00019349,2]
[378682097,1754958645826,-460.0,0.00019349,2]
[378682098,1754958645836,-460.0,0.00019349,2]
[378682099,1754958645846,-295.75302506,0.00019349,2]
[378682100,1754958645856,-460.0,0.00019349,2]
[378682101,1754958645866,-460.0,0.00019349,2]
[378682102,1754958645877,-318.50767335,0.00019349,2]
[378682103,1754958645887,-529.02,0.00019349,2]
[378682104,1754958645897,-460.0,0.00019349,2]
[378682105,1754958645907,-460.0,0.00019349,2]
[378682106,1754958645917,-460.0,0.00019349,2]
[378682107,1754958645927,-460.0,0.00019349,2]
[378682108,1754958645941,-460.0,0.00019349,2]